bitfinex/quotes_ETHUSD_20250219
["timestamp","ask_amount","ask_price","bid_price","bid_amount"]
[1740006192060,3.65868,2733.3,2732.7,4.47917]
[1740006192875,3.65872,2733.2,2732.7,0.8198]
[1740006193473,3.65872,2733.2,2732.8,0.5211234]
[1740006194174,3.65872,2733.2,2732.8,5.8911234]
[1740006194685,3.0,2733.6,2732.8,5.8911234]
[1740006194862,3.65831,2733.5,2732.8,5.8911234]
[1740006195064,3.65846,2733.4,2732.8,5.8911234]
[1740006195398,3.6586,2733.3,2732.9,0.67109234]
[1740006195565,3.65872,2733.2,2732.9,0.67109234]
[1740006196388,3.65841,2733.5,2732.9,0.67109234]
[1740006196699,3.6576,2734.1,2733.3,3.65851]
[1740006196900,3.65728,2734.3,2733.4,0.810179]
[1740006197104,3.65753,2734.1,2733.3,5.37]
[1740006197396,0.7755,2734.4,2733.5,3.65821]
[1740006197397,3.6571,2734.4,2733.5,3.65821]
[1740006197763,0.7755,2734.8,2733.8,3.65787]
[1740006197992,3.65704,2734.5,2733.8,3.65787]
[1740006198198,7.31411,2734.5,2733.8,3.65787]
[1740006198499,0.7755,2734.8,2733.7,5.659]
[1740006198500,4.32484072,2734.8,2733.7,5.37]
[1740006198679,3.65787,2733.9,2733.7,5.37]
[1740006198873,3.65779,2733.9,2733.6,0.7846]
[1740006199064,3.65804,2733.7,2733.3,6.1546]
[1740006199264,3.65804,2733.7,2733.0,0.289]
[1740006199265,3.65841,2733.5,2733.0,1.0736]
[1740006200099,3.65884,2733.1,2732.9,5.37]
[1740006200308,4.4337,2733.6,2732.6,0.7846]
[1740006200309,0.7755,2733.6,2732.6,0.7846]
[1740006200523,3.65978,2732.5,2732.3,0.7846]
[1740006200685,3.65904,2733.0,2732.3,0.7846]
[1740006200868,0.839,2734.0,2732.5,0.7846]
[1740006200869,5.36,2733.6,2732.5,0.7846]
[1740006201068,0.7755,2734.0,2732.9,3.65903]
[1740006201304,0.7824,2734.3,2733.6,3.65814]
[1740006201604,3.65752,2734.1,2733.7,0.7795]
[1740006201908,3.65727,2734.3,2733.7,0.7795]
[1740006202271,3.65769,2734.0,2733.7,0.7795]
[1740006202703,0.7816,2734.1,2733.3,0.7587]
[1740006202873,3.65874,2733.2,2733.0,0.7587]
[1740006203074,7.31673,2733.5,2733.0,0.7587]
[1740006203393,3.65833,2733.5,2733.0,0.7587]
[1740006203570,3.65856,2733.4,2733.0,0.7587]
[1740006203771,3.65869,2733.3,2733.0,0.7587]
[1740006204103,3.65911,2732.9,2732.8,5.37]
[1740006205201,7.31781,2733.1,2732.8,5.37]
[1740006205502,3.65884,2733.1,2732.8,5.37]
[1740006205703,3.65911,2732.9,2732.8,5.37]
[1740006205903,3.65911,2732.9,2732.2,6.1287]
[1740006206110,3.65939,2732.7,2732.3,0.64187]
[1740006206807,3.65925,2732.8,2732.3,0.64187]
[1740006207107,3.65862,2733.3,2732.2,0.7587]
[1740006207108,3.65967,2732.5,2732.2,0.7587]
[1740006207282,3.65988,2732.4,2732.2,0.7587]
[1740006207486,3.0,2733.2,2732.2,0.7587]
[1740006207687,3.65992,2732.3,2732.2,0.7587]
[1740006208079,3.65992,2732.3,2732.0,0.57319972]
[1740006208279,3.65931,2732.8,2732.0,0.57319972]
[1740006208280,3.66007,2732.2,2732.0,0.57319972]
[1740006208477,3.66018,2732.1,2732.0,0.57319972]
[1740006212223,5.157205,2732.1,2732.0,0.57319972]
[1740006212517,8.157205,2732.1,2732.0,0.57319972]
[1740006212819,3.66083,2731.7,2731.2,6.1686]
[1740006213120,4.42468,2732.5,2731.4,0.57356856]
[1740006213278,3.65987,2732.4,2731.5,4.45959]
[1740006213487,3.65995,2732.3,2731.5,4.45949]
[1740006213712,0.765,2732.5,2731.5,4.45949]
[1740006213906,3.65992,2732.3,2731.5,0.7986]
[1740006214110,3.66055,2731.9,2731.6,0.67421686]
[1740006214311,3.66099,2731.5,2731.4,0.57356856]
[1740006214511,3.66122,2731.4,2731.2,6.149]
[1740006214714,3.66122,2731.4,2730.8,4.38227498]
[1740006214715,3.66126,2731.3,2730.9,0.7794]
[1740006214919,3.8075,2732.2,2730.7,5.37]
[1740006214920,3.66191,2730.9,2730.7,5.37]
[1740006215221,3.66206,2730.7,2730.6,0.7794]
[1740006215437,3.66231,2730.6,2730.3,5.37]
[1740006215727,3.66106,2731.5,2730.8,0.7794]
[1740006215911,3.66106,2731.5,2730.8,6.1494]
[1740006215912,3.66119,2731.4,2730.8,6.1494]
[1740006216229,3.66105,2731.5,2730.9,0.981137]
[1740006216612,3.6608,2731.7,2730.9,0.981137]
[1740006216811,3.6608,2731.7,2730.9,4.642837]
[1740006217020,3.66111,2731.5,2730.9,4.642837]
[1740006217219,3.0,2731.8,2731.0,1.0792237]
[1740006217526,3.66027,2732.1,2731.4,0.7794]
[1740006217724,3.66034,2732.0,2731.4,6.1494]
[1740006218107,3.66052,2731.9,2731.4,6.1494]
[1740006218292,3.66052,2731.9,2731.5,0.981058]
[1740006218728,3.66066,2731.8,2731.5,0.981058]
[1740006218899,7.3211,2731.9,2731.5,0.981058]
[1740006219098,3.66052,2731.9,2731.5,0.981058]
[1740006219424,3.66037,2732.0,2731.5,0.981058]
[1740006219631,3.0,2732.4,2731.6,0.7130458]
[1740006219935,3.66032,2732.0,2731.6,0.7130458]
[1740006220431,3.66048,2731.9,2731.6,0.7130458]
[1740006221032,3.66032,2732.0,2731.6,0.7130458]
[1740006221396,3.66045,2731.9,2731.6,0.7130458]
[1740006221596,3.66019,2732.1,2731.6,0.7130458]
[1740006221833,3.66049,2731.9,2731.6,0.7130458]
[1740006222327,3.66072,2731.7,2731.4,0.7794]
[1740006222532,3.66123,2731.4,2731.1,0.8054]
[1740006222732,3.66132,2731.3,2731.1,0.8054]
[1740006223332,3.66132,2731.3,2730.9,5.37]
[1740006223626,3.66141,2731.2,2730.9,5.37]
[1740006224700,7.32288,2731.2,2730.9,5.37]
[1740006225231,3.66141,2731.2,2730.9,5.37]
[1740006225555,3.66121,2731.4,2730.9,5.37]
[1740006225556,0.7718,2732.1,2730.9,5.98754]
[1740006225697,3.6602,2732.1,2731.6,0.83]
[1740006226315,3.66072,2731.7,2731.6,0.83]
[1740006226516,3.66099,2731.5,2731.4,5.37]
[1740006226732,3.66112,2731.4,2731.2,0.83]
[1740006226911,3.6609,2731.6,2731.0,5.37]
[1740006227094,3.66101,2731.5,2731.0,10.017542]
[1740006227300,3.66101,2731.5,2731.0,6.355882]
[1740006227709,0.7795,2731.9,2731.0,6.355882]
[1740006227910,3.66063,2731.8,2731.0,6.355882]
[1740006228204,3.66105,2731.5,2731.0,6.355882]
[1740006228405,3.66115,2731.4,2731.0,5.37]
[1740006228628,3.66126,2731.3,2731.0,5.37]
[1740006228828,3.66126,2731.3,2730.9,0.827]
[1740006229037,3.66152,2731.1,2730.9,0.827]
[1740006229534,3.66144,2731.2,2730.9,0.827]
[1740006229925,3.66126,2731.3,2730.9,0.827]
[1740006230330,3.66148,2731.2,2730.9,0.827]
[1740006230626,3.66139,2731.2,2730.9,0.827]
[1740006232039,3.66153,2731.1,2730.9,0.827]
[1740006232206,3.66166,2731.0,2730.6,6.1692]
[1740006236045,3.66166,2731.0,2730.6,0.7992]
[1740006236208,3.66194,2730.8,2730.4,5.37]
[1740006236404,7.32395,2730.8,2730.4,5.37]
[1740006236616,3.66194,2730.8,2730.4,5.37]
[1740006236835,7.32395,2730.8,2730.4,5.37]
[1740006237103,3.66206,2730.7,2730.4,5.37]
[1740006237754,0.779,2731.1,2730.4,5.37]
[1740006237755,3.66177,2731.0,2730.4,9.03243]
[1740006238038,3.66143,2731.2,2730.5,3.66225]
[1740006238244,3.66143,2731.2,2730.5,5.1049312]
[1740006238621,3.66139,2731.2,2730.6,3.66212]
[1740006239031,3.6612,2731.4,2730.6,3.66212]
[1740006239234,5.36,2731.6,2731.0,3.66158]
[1740006239549,3.66081,2731.7,2730.8,5.37]
[1740006239550,3.66178,2731.0,2730.8,5.37]
[1740006239883,3.66219,2730.7,2730.4,6.1247]
[1740006240012,3.66224,2730.6,2730.4,6.1247]
[1740006240211,3.66219,2730.7,2730.4,6.1247]
[1740006240412,0.7661,2731.3,2730.4,5.37]
[1740006240745,3.66258,2730.4,2730.1,0.7547]
[1740006240943,3.66273,2730.2,2730.1,0.7547]
[1740006241143,3.66264,2730.3,2729.9,5.37]
[1740006241331,0.37661,2730.8,2730.0,3.66298]
[1740006241535,3.66205,2730.8,2730.0,7.3258]
[1740006241734,4.42794,2730.9,2730.0,7.3258]
[1740006241735,0.7661,2730.9,2730.2,3.66261]
[1740006241926,7.32382,2730.9,2730.2,3.66261]
[1740006242126,3.0,2731.0,2730.0,0.8157]
[1740006242127,3.66202,2730.8,2730.0,0.8157]
[1740006242349,3.66215,2730.7,2730.1,3.66279]
[1740006242549,5.36,2731.1,2730.5,3.66225]
[1740006242711,0.7504,2731.5,2730.8,3.66192]
[1740006243218,4.027021,2731.6,2730.8,3.66186]
[1740006243219,3.66094,2731.6,2730.8,3.66186]
[1740006243421,3.6614,2731.2,2730.6,6.1857]
[1740006243631,3.66162,2731.1,2730.6,5.37]
[1740006243950,0.37536,2731.7,2730.9,3.6617]
[1740006244124,3.66098,2731.6,2730.9,3.6617]
[1740006244317,3.66103,2731.5,2730.9,3.6617]
[1740006244548,3.66066,2731.8,2730.9,3.6617]
[1740006244749,1.277426,2731.8,2730.7,0.8066]
[1740006245057,3.66092,2731.6,2730.9,3.66172]
[1740006245258,1.08960835,2732.2,2730.9,0.7778]
[1740006245460,1.08960835,2732.2,2731.6,3.66078]
[1740006245461,0.27440835,2732.2,2731.6,3.66078]
[1740006245763,0.8152,2733.0,2732.1,0.7778]
[1740006246067,3.0,2732.9,2732.1,0.7778]
[1740006246364,3.66005,2732.2,2731.8,5.37]
[1740006246556,3.66005,2732.2,2731.7,0.8184]
[1740006246557,3.66032,2732.0,2731.7,0.8184]
[1740006246718,7.32076,2732.0,2731.7,0.8184]
[1740006247053,3.66032,2732.0,2731.4,0.7576]
[1740006247244,3.66075,2731.7,2731.4,0.7576]
[1740006247757,0.781,2732.4,2731.4,0.7576]
[1740006248284,3.65975,2732.5,2731.8,4.44126]
[1740006248422,3.65978,2732.4,2731.8,0.7808]
[1740006249073,3.66001,2732.3,2731.8,0.7808]
[1740006249479,3.65978,2732.4,2731.8,0.7808]
[1740006249772,5.36,2732.9,2732.1,3.66008]
[1740006249976,0.8145,2733.1,2731.9,9.03037]
[1740006250176,3.65952,2732.6,2731.9,9.64545]
[1740006250839,3.65986,2732.4,2731.9,5.37]
[1740006251038,3.66013,2732.2,2731.9,5.37]
[1740006251261,3.66013,2732.2,2731.8,0.7808]
[1740006251443,3.65928,2732.8,2731.9,5.37]
[1740006251643,3.65928,2732.8,2732.0,4.27527]
[1740006251842,3.65941,2732.7,2732.0,0.61508]
[1740006252088,7.31892,2732.7,2732.0,0.61508]
[1740006252299,3.0,2732.9,2732.1,0.8032]
[1740006252598,3.65926,2732.8,2732.1,8.12342]
[1740006252800,3.0,2732.9,2732.2,0.87385]
[1740006253007,3.65925,2732.8,2732.2,0.87385]
[1740006253146,3.65942,2732.7,2732.2,0.87385]
[1740006253498,3.65969,2732.5,2732.1,0.8032]
[1740006254098,3.65951,2732.6,2731.7,0.7899]
[1740006254099,0.7988,2732.6,2731.7,0.7899]
[1740006254398,3.66013,2732.2,2731.7,0.7899]
[1740006254556,3.7988,2732.6,2731.7,6.1599]
[1740006254758,0.757,2732.9,2731.7,6.1599]
[1740006254961,3.757,2732.9,2731.7,9.8206]
[1740006255164,3.66021,2732.1,2731.7,6.1599]
[1740006255649,3.0,2732.7,2731.8,3.6605]
[1740006255650,3.65948,2732.7,2731.8,3.6605]
[1740006255842,3.65969,2732.5,2731.8,3.6605]
[1740006256088,3.65982,2732.4,2731.8,3.6605]
[1740006256298,3.65982,2732.4,2731.8,1.34812]
[1740006256597,3.65994,2732.3,2731.8,1.34812]
[1740006256775,0.80891094,2732.8,2731.7,6.1599]
[1740006257080,3.65941,2732.7,2732.0,3.66031]
[1740006257295,3.65975,2732.5,2731.9,0.8045]
[1740006257580,3.65978,2732.4,2731.9,0.8045]
[1740006257778,3.65975,2732.5,2731.9,0.8045]
[1740006257952,3.65975,2732.5,2732.0,0.446499]
[1740006258155,0.757,2732.9,2731.9,0.8045]
[1740006258378,3.66017,2732.2,2731.9,0.8045]
[1740006258543,3.65995,2732.3,2731.9,0.8045]
[1740006258945,7.31897,2732.7,2731.9,4.46495]
[1740006259150,3.65947,2732.7,2732.1,3.66018]
[1740006259369,3.65947,2732.7,2732.0,5.816495]
[1740006259683,3.65925,2732.8,2732.0,5.816495]
[1740006259866,3.65925,2732.8,2732.1,4.3221595]
[1740006260379,3.0,2733.1,2732.1,4.3221995]
[1740006260678,3.65934,2732.8,2732.2,3.66002]
[1740006260982,7.31921,2732.6,2732.1,0.6620995]
[1740006261188,7.31921,2732.6,2732.0,9.476735]
[1740006261347,3.0,2733.1,2732.0,5.816495]
[1740006261552,3.65979,2732.4,2732.0,5.37]
[1740006261755,7.31954,2732.5,2732.0,5.37]
[1740006262072,3.65977,2732.5,2732.0,5.37]
[1740006262683,0.8149,2733.0,2732.2,3.66002]
[1740006262881,3.65927,2732.8,2732.2,0.903002]
[1740006263082,3.65958,2732.6,2732.2,0.903002]
[1740006263284,3.65914,2732.9,2732.0,5.37]
[1740006263663,3.65984,2732.4,2732.0,5.37]
[1740006264467,3.66006,2732.2,2732.0,5.37]
[1740006265158,3.66018,2732.1,2731.9,0.8045]
[1740006265483,3.66006,2732.2,2731.6,1.0392]
[1740006265789,3.66006,2732.2,2731.6,4.70004]
[1740006265958,3.66026,2732.1,2731.7,0.470004]
[1740006266667,3.66032,2732.0,2731.7,0.470004]
[1740006267390,3.66006,2732.2,2731.7,0.470004]
[1740006267697,0.2,2733.7,2731.7,0.470004]
[1740006267698,3.65975,2732.5,2731.9,0.7828]
[1740006268262,3.65975,2732.5,2732.0,0.981332]
[1740006269016,3.65953,2732.6,2732.1,3.66018]
[1740006269194,0.7813,2733.0,2732.1,3.66018]
[1740006269400,4.44029,2733.0,2732.2,3.66005]
[1740006269717,3.65932,2732.8,2732.3,0.366005]
[1740006270024,3.65932,2732.8,2732.4,0.7858]
[1740006270327,3.65874,2733.2,2732.4,4.4455]
[1740006270475,3.65837,2733.5,2732.7,3.65925]
[1740006270804,3.65837,2733.5,2732.7,3.65938]
[1740006270805,3.65852,2733.4,2732.7,3.65938]
[1740006270966,3.65862,2733.3,2732.7,3.65938]
[1740006271303,3.8162,2733.7,2733.0,3.65891]
[1740006271607,3.65846,2733.4,2732.8,1.536089]
[1740006271793,3.6586,2733.3,2732.8,1.536089]
[1740006271990,3.65846,2733.4,2732.8,1.536089]
[1740006272191,7.31698,2733.4,2732.9,1.0565359]
[1740006272390,3.65846,2733.4,2732.9,1.0565359]
[1740006272828,7.31698,2733.4,2732.9,1.0565359]
[1740006273189,3.65861,2733.3,2732.8,0.8042]
[1740006273398,3.65846,2733.4,2732.8,0.8042]
[1740006274075,3.65858,2733.3,2732.8,0.8042]
[1740006275277,3.8162,2734.0,2732.8,0.8042]
[1740006275577,3.6582,2733.6,2732.9,4.27643]
[1740006275990,3.6582,2733.6,2733.0,3.65896]
[1740006276188,7.31647,2733.6,2733.0,3.65896]
[1740006276383,3.65832,2733.5,2732.9,4.27643]
[1740006276594,3.65833,2733.5,2732.9,0.61742]
[1740006276798,3.65871,2733.2,2732.8,0.8042]
[1740006276998,3.65888,2733.1,2732.8,0.8042]
[1740006278133,3.6585,2733.4,2732.8,4.46344]
[1740006278412,8.60977394,2734.0,2733.2,3.65869]
[1740006278413,4.283373,2734.0,2733.2,3.65869]
[1740006278711,3.65833,2733.5,2732.9,9.02904]
[1740006279284,3.65833,2733.5,2732.9,5.37]
[1740006279285,3.6584,2733.5,2732.9,5.37]
[1740006279488,3.65863,2733.3,2732.9,5.37]
[1740006280415,5.36,2734.5,2733.0,0.7615]
[1740006280587,0.8325,2734.4,2733.6,3.65805]
[1740006280789,3.65716,2734.4,2733.7,0.7615]
[1740006281114,3.65664,2734.8,2734.1,3.65745]
[1740006281316,4.387941,2734.8,2734.2,0.7615]
[1740006281615,0.7833,2735.5,2734.2,6.1315]
[1740006281789,3.65605,2735.2,2734.4,3.65702]
[1740006282144,0.7833,2735.2,2734.2,6.1446]
[1740006282316,3.65724,2734.3,2734.2,5.37]
[1740006282621,3.65689,2734.6,2733.9,1.0596]
[1740006282780,0.7833,2735.2,2734.0,0.55]
[1740006283120,0.7833,2735.5,2734.2,0.7746]
[1740006283304,0.7833,2735.5,2734.1,5.37]
[1740006283305,3.65734,2734.3,2734.1,5.37]
[1740006283486,3.65737,2734.2,2734.1,5.37]
[1740006283887,3.65734,2734.3,2734.1,5.37]
[1740006284304,3.65657,2734.8,2733.9,0.7908]
[1740006284586,0.8289,2734.9,2733.9,0.7908]
[1740006284587,3.65764,2734.0,2733.9,0.7908]
[1740006284787,3.65744,2734.2,2733.9,0.7908]
[1740006284982,3.6568,2734.7,2733.9,0.7908]
[1740006285184,3.65731,2734.3,2733.9,0.7908]
[1740006285515,1.194631,2734.3,2733.4,5.37]
[1740006285694,3.65781,2733.9,2733.4,5.37]
[1740006285896,3.658,2733.8,2733.4,5.37]
[1740006286100,3.65831,2733.5,2733.3,0.7908]
[1740006286614,3.65814,2733.7,2733.3,0.7908]
[1740006286923,3.65844,2733.4,2733.3,0.7908]
[1740006287415,3.65871,2733.2,2732.7,6.1608]
[1740006287582,6.1889,2733.7,2732.7,0.7908]
[1740006287789,6.1889,2733.7,2732.4,0.7908]
[1740006287790,3.65948,2732.7,2732.4,0.7908]
[1740006288011,3.6593,2732.8,2732.4,0.7908]
[1740006288199,0.8289,2733.0,2732.4,0.7908]
[1740006288394,3.65925,2732.8,2732.4,0.7908]
[1740006288596,0.8289,2733.0,2732.0,6.1608]
[1740006288814,3.66018,2732.1,2732.0,0.7908]
[1740006289313,3.6597,2732.5,2732.0,0.7908]
[1740006289513,0.8289,2733.0,2732.0,4.45104]
[1740006289845,3.65925,2732.8,2732.1,5.37]
[1740006290005,3.65925,2732.8,2732.1,5.815104]
[1740006290342,10.10836668,2733.6,2732.6,0.7908]
[1740006290343,3.65876,2733.2,2732.6,0.7908]
[1740006290527,3.65928,2732.8,2732.6,0.7908]
[1740006290728,3.65913,2732.9,2732.6,0.7908]
[1740006291503,3.65872,2733.2,2732.6,0.7908]
[1740006291709,3.65881,2733.2,2732.6,0.7908]
[1740006291953,3.65839,2733.5,2732.6,0.7908]
[1740006292245,3.65907,2733.0,2732.6,0.7908]
[1740006292543,7.31815,2733.0,2732.6,0.7908]
[1740006292743,3.65913,2732.9,2732.6,0.7908]
[1740006293107,0.49090557,2733.5,2732.6,0.7908]
[1740006293308,3.65938,2732.7,2732.4,6.1608]
[1740006293543,7.31836,2732.9,2732.4,6.1608]
[1740006293738,3.65925,2732.8,2732.4,6.1608]
[1740006294037,3.65913,2732.9,2732.4,6.77688]
[1740006294542,3.65927,2732.8,2732.4,6.77688]
[1740006294708,3.65913,2732.9,2732.4,6.77688]
[1740006295350,3.6594,2732.7,2732.4,6.77688]
[1740006295913,3.65913,2732.9,2732.4,6.77688]
[1740006296125,3.65913,2732.9,2732.5,0.677688]
[1740006296332,3.65949,2732.7,2732.4,6.1608]
[1740006296535,7.31897,2732.7,2732.4,6.1608]
[1740006296753,3.65948,2732.7,2732.4,6.1608]
[1740006296906,7.31897,2732.7,2732.4,6.1608]
[1740006297112,3.65992,2732.3,2732.2,5.37]
[1740006297339,3.66003,2732.3,2731.8,1.0385]
[1740006297530,3.66007,2732.2,2731.8,1.0385]
[1740006297729,3.6593,2732.8,2731.8,1.508434]
[1740006297918,5.36,2733.1,2732.2,0.7535]
[1740006298120,5.36,2733.1,2732.5,0.7535]
[1740006298307,3.65899,2733.0,2732.5,6.1235]
[1740006298516,4.90175557,2733.5,2732.5,6.1235]
[1740006298517,3.65846,2733.4,2732.5,6.1235]
[1740006298750,3.65946,2732.7,2732.5,6.1235]
[1740006298941,0.7525,2733.5,2732.5,6.1235]
[1740006299143,3.65925,2732.8,2732.6,0.61235]
[1740006299347,3.65925,2732.8,2732.5,5.37]
[1740006299348,3.65951,2732.6,2732.5,5.37]
[1740006299980,3.65946,2732.7,2732.5,5.37]
[1740006300446,3.65951,2732.6,2732.5,5.37]
[1740006301325,3.0,2733.1,2732.5,5.37]
[1740006301326,3.65932,2732.8,2732.5,5.37]
[1740006301525,3.65915,2732.9,2732.5,5.907]
[1740006302112,3.65946,2732.7,2732.5,5.907]
[1740006302317,3.65951,2732.6,2732.5,5.37]
[1740006302512,4.48001,2732.6,2732.5,5.37]
[1740006302720,3.65951,2732.6,2732.5,5.37]
[1740006302952,3.65924,2732.9,2732.5,6.15]
[1740006303251,3.65922,2732.9,2732.5,6.765]
[1740006303457,0.7501,2733.6,2732.6,3.65951]
[1740006303617,3.65927,2732.8,2732.5,6.765]
[1740006303826,3.65951,2732.6,2732.5,6.15]
[1740006304022,3.65927,2732.8,2732.5,6.15]
[1740006304656,3.65951,2732.6,2732.5,6.15]
[1740006304923,3.65951,2732.6,2732.5,5.37]
[1740006305154,3.65902,2733.0,2732.5,5.37]
[1740006305356,3.0,2733.2,2732.6,0.7712]
[1740006305566,3.65907,2733.0,2732.6,0.7712]
[1740006305923,0.7501,2733.6,2732.8,3.65914]
[1740006306140,0.7501,2733.9,2732.9,0.7712]
[1740006306469,3.65753,2734.1,2733.4,0.7712]
[1740006306625,6.1101,2734.7,2733.4,0.7712]
[1740006306626,3.7501,2734.3,2733.4,0.7712]
[1740006306959,6.1101,2734.7,2733.2,0.55]
[1740006307162,3.65739,2734.2,2733.7,0.7712]
[1740006307499,3.65739,2734.2,2733.4,0.7712]
[1740006307500,3.65815,2733.7,2733.4,0.7712]
[1740006307661,3.65815,2733.7,2733.3,5.37]
[1740006308363,0.7501,2734.1,2733.3,5.37]
[1740006308548,3.6582,2733.6,2733.3,5.37]
[1740006308731,3.65831,2733.5,2733.3,5.37]
[1740006308926,3.65844,2733.4,2733.3,5.37]
[1740006310452,0.7689,2733.5,2732.8,0.767]
[1740006310633,3.65911,2732.9,2732.8,0.767]
[1740006310831,3.65887,2733.1,2732.8,0.767]
[1740006311571,3.65887,2733.1,2732.5,5.37]
[1740006311766,3.65949,2732.7,2732.5,5.37]
[1740006312170,3.6599,2732.4,2732.2,5.37]
[1740006312337,3.66033,2732.0,2731.8,0.8156]
[1740006312532,3.65944,2732.7,2731.8,0.8156]
[1740006312868,3.65966,2732.5,2731.9,0.61856]
[1740006313262,3.65979,2732.4,2731.9,0.61856]
[1740006313582,3.65966,2732.5,2731.9,0.61856]
[1740006313873,3.65988,2732.4,2731.9,0.61856]
[1740006314535,3.65992,2732.3,2731.9,0.61856]
[1740006314738,3.65966,2732.5,2731.9,0.61856]
[1740006314960,3.65966,2732.5,2732.0,0.509474]
[1740006315371,3.6598,2732.4,2732.0,0.509474]
[1740006315571,3.6598,2732.4,2731.9,0.61856]
[1740006315572,3.65994,2732.3,2731.9,0.61856]
[1740006315774,3.66019,2732.1,2731.8,0.8156]
[1740006315978,3.66019,2732.1,2731.8,6.1856]
[1740006316709,3.66088,2731.6,2731.4,0.8198]
[1740006316845,3.66021,2732.1,2731.4,0.8198]
[1740006317045,3.66052,2731.9,2731.4,0.8198]
[1740006317545,3.66072,2731.7,2731.4,0.8198]
[1740006318178,7.42251,2732.4,2731.4,4.48089]
[1740006318475,3.66017,2732.2,2731.5,9.478989]
[1740006318837,3.65945,2732.7,2731.7,0.8114]
[1740006319080,3.66,2732.3,2731.7,0.8114]
[1740006319247,3.66006,2732.2,2731.7,0.8114]
[1740006319574,3.66027,2732.1,2731.7,1.4743489]
[1740006319939,3.65989,2732.4,2731.7,1.4743489]
[1740006320144,3.66013,2732.2,2731.7,1.4743489]
[1740006320579,3.66045,2731.9,2731.7,0.8114]
[1740006320776,4.32640094,2732.7,2731.7,0.8114]
[1740006320977,3.66071,2731.8,2731.5,5.37]
[1740006321154,3.66071,2731.8,2731.5,6.0174]
[1740006321782,3.66073,2731.7,2731.5,5.37]
[1740006321985,3.66085,2731.6,2731.5,5.37]
[1740006323458,3.66065,2731.8,2731.5,5.37]
[1740006323658,3.66081,2731.7,2731.5,5.37]
[1740006324249,3.66085,2731.6,2731.5,5.37]
[1740006325078,3.66085,2731.6,2731.2,5.37]
[1740006325383,3.66105,2731.5,2731.2,6.01174]
[1740006325550,3.66085,2731.6,2731.2,6.01174]
[1740006325750,3.66113,2731.4,2731.2,5.37]
[1740006326382,3.66147,2731.2,2730.9,5.37]
[1740006326689,0.7952,2731.5,2730.9,5.37]
[1740006326899,3.66166,2731.0,2730.9,5.37]
[1740006327459,3.66181,2730.9,2730.6,5.37]
[1740006327889,3.66195,2730.8,2730.6,5.37]
[1740006328089,3.0,2731.4,2730.6,5.37]
[1740006328293,3.66176,2731.0,2730.6,5.37]
[1740006328592,3.66194,2730.8,2730.6,5.37]
[1740006328795,3.66176,2731.0,2730.6,5.37]
[1740006329161,0.7952,2731.5,2730.6,5.37]
[1740006329366,3.66127,2731.3,2730.7,3.66206]
[1740006329573,3.66127,2731.3,2730.8,0.903206]
[1740006330976,3.66166,2731.1,2730.8,0.903206]
[1740006331183,3.66174,2731.0,2730.6,5.37]
[1740006331561,7.32329,2731.1,2730.6,5.37]
[1740006331764,3.66163,2731.1,2730.6,5.37]
[1740006332099,0.09005404,2731.0,2730.6,6.348512]
[1740006332310,3.75174404,2731.0,2730.6,6.348512]
[1740006332665,0.09005404,2731.0,2730.6,6.348512]
[1740006333171,3.75173404,2731.0,2730.6,6.348512]
[1740006333571,3.66188,2730.9,2730.6,6.348512]
[1740006333771,3.71226417,2730.9,2730.6,5.37]
[1740006334091,3.66196,2730.8,2730.6,5.37]
[1740006334470,0.05024755,2730.7,2730.6,5.37]
[1740006334672,3.71230755,2730.7,2730.6,5.37]
[1740006334908,0.03916016,2731.0,2730.6,5.37]
[1740006335067,0.0856737,2730.7,2730.6,5.37]
[1740006335270,3.66196,2730.8,2730.6,5.37]
[1740006335508,3.69796593,2730.7,2730.6,5.37]
[1740006336978,0.08554199,2730.7,2730.6,5.37]
[1740006337522,3.66196,2730.8,2730.6,5.37]
[1740006337800,0.03608174,2730.7,2730.6,5.37]
[1740006338210,3.66196,2730.8,2730.6,5.37]
[1740006338505,0.03567153,2730.7,2730.6,5.37]
[1740006338709,0.03567153,2730.7,2730.6,6.6923]
[1740006338876,3.66094,2731.6,2730.6,6.6923]
[1740006339077,0.808,2731.8,2730.6,10.35449]
[1740006339271,3.66127,2731.3,2730.7,3.662]
[1740006339477,3.66127,2731.3,2730.7,3.946]
[1740006339740,0.03418818,2731.2,2730.8,1.430049]
[1740006340038,3.66127,2731.3,2730.8,6.800049]
[1740006340231,0.03438716,2731.1,2730.8,6.800049]
[1740006340422,0.03418818,2731.2,2730.8,6.800049]
[1740006340594,0.08548003,2731.0,2730.8,5.37]
[1740006340772,3.6614,2731.2,2730.8,5.37]
[1740006340979,0.03478516,2730.9,2730.8,5.37]
[1740006341294,0.808,2731.8,2730.8,5.37]
[1740006341504,0.03478516,2730.9,2730.8,9.79004]
[1740006341706,3.35935,2731.6,2731.0,3.66161]
[1740006341906,3.661,2731.5,2731.0,5.37]
[1740006342108,0.03402066,2731.5,2731.0,5.37]
[1740006342300,0.03402066,2731.5,2731.0,9.03164]
[1740006342499,0.03402066,2731.5,2731.1,0.903164]
[1740006342704,0.03402066,2731.5,2731.3,3.66124]
[1740006342903,9.02005,2732.3,2731.4,3.66103]